bitfinex-derivatives/quotes_BTCF0:USTF0_20260118
["timestamp","ask_amount","ask_price","bid_price","bid_amount"]
[1768745948033,0.010497,95305.0,95299.0,0.00015736]
[1768745948233,0.010497,95303.0,95296.0,7.8e-07]
[1768745948433,0.010497,95307.0,95300.0,3.7e-07]
[1768745948633,0.010497,95307.0,95297.0,0.15807037]
[1768745948845,0.010497,95302.0,95297.0,3.7e-07]
[1768745949242,0.010497,95302.0,95292.0,0.09444]
[1768745949539,0.010498,95291.0,95289.0,3.6e-07]
[1768745949744,0.09920558,95294.0,95283.0,0.09444]
[1768745949745,0.010498,95293.0,95283.0,0.09444]
[1768745949944,0.010498,95293.0,95276.0,0.10983093]
[1768745950141,0.010498,95293.0,95284.0,0.26337369]
[1768745950445,0.010498,95293.0,95279.0,0.25288135]
[1768745950746,0.010498,95293.0,95285.0,0.15844135]
[1768745951046,0.010498,95297.0,95281.0,0.15686523]
[1768745951547,0.010498,95295.0,95286.0,0.15686523]
[1768745951849,0.010498,95295.0,95280.0,0.26180913]
[1768745951850,0.010498,95295.0,95281.0,0.15830932]
[1768745952038,0.010498,95295.0,95287.0,0.15830932]
[1768745952240,0.010498,95295.0,95281.0,0.1049439]
[1768745952546,0.010498,95295.0,95282.0,0.15830932]
[1768745952846,0.010498,95298.0,95281.0,0.37134039]
[1768745953043,0.09920558,95299.0,95282.0,0.10983093]
[1768745953246,0.010497,95302.0,95282.0,0.10983093]
[1768745953442,0.010497,95306.0,95285.0,0.20119076]
[1768745953750,0.010497,95306.0,95290.0,0.10983093]
[1768745954438,0.010497,95306.0,95291.0,0.15800583]
[1768745954838,0.010497,95306.0,95291.0,0.26783676]
[1768745955240,0.010497,95306.0,95291.0,0.10983093]
[1768745955746,0.010497,95306.0,95292.0,0.15660704]
[1768745956649,0.09444,95308.0,95293.0,0.10983093]
[1768745956840,0.09444,95308.0,95292.0,0.15660704]
[1768745956841,0.010497,95307.0,95292.0,0.15660704]
[1768745957047,0.010497,95307.0,95294.0,0.15752466]
[1768745957349,0.010497,95307.0,95291.0,0.1799735]
[1768745957552,0.010497,95307.0,95291.0,0.10983093]
[1768745957844,0.010497,95307.0,95292.0,0.15659426]
[1768745959152,0.010497,95305.0,95292.0,0.15659426]
[1768745959342,0.09448,95308.0,95292.0,2.6e-07]
[1768745959343,0.010498,95296.0,95292.0,2.6e-07]
[1768745959745,0.010498,95296.0,95290.0,0.15765544]
[1768745959945,0.010498,95296.0,95283.0,0.17655733]
[1768745960151,0.010498,95296.0,95284.0,0.10619064]
[1768745960354,0.010498,95296.0,95284.0,0.26426183]
[1768745960555,0.010498,95296.0,95284.0,0.15807119]
[1768745960750,0.09920558,95297.0,95284.0,0.15807119]
[1768745961049,0.09920558,95297.0,95282.0,0.15653219]
[1768745961254,0.09920558,95297.0,95281.0,0.10619064]
[1768745961556,0.09920558,95297.0,95281.0,0.10772964]
[1768745961854,0.09920558,95308.0,95284.0,0.19083694]
[1768745962155,0.09920558,95308.0,95280.0,0.09448]
[1768745962156,0.09448,95308.0,95293.0,0.09493099]
[1768745962338,0.09448,95308.0,95287.0,0.08540895]
[1768745962543,0.19357791,95308.0,95287.0,0.08540895]
[1768745962943,0.19357791,95308.0,95288.0,0.15763841]
[1768745963344,0.19357791,95308.0,95288.0,0.2625746]
[1768745963553,0.010497,95307.0,95288.0,0.34798355]
[1768745964151,0.010497,95307.0,95289.0,0.08291921]
[1768745964456,0.010497,95307.0,95290.0,0.15709368]
[1768745966058,0.09448,95308.0,95290.0,0.15709368]
[1768745966558,0.09448,95308.0,95290.0,0.2396661]
[1768745967055,0.09448,95308.0,95290.0,0.08257242]
[1768745967454,0.00015736,95309.0,95292.0,0.08257242]
[1768745967654,0.104976,95317.0,95292.0,0.08257242]
[1768745967849,0.09448,95317.0,95294.0,0.07980228]
[1768745968048,0.09448,95317.0,95295.0,0.07980228]
[1768745968250,0.09448,95324.0,95302.0,0.07980228]
[1768745968642,0.09448,95324.0,95301.0,0.010497]
[1768745968643,0.09448,95324.0,95304.0,0.07980228]
[1768745969051,0.00015736,95323.0,95306.0,0.07980228]
[1768745969251,0.00015736,95323.0,95306.0,0.17428228]
[1768745969452,0.00015736,95323.0,95307.0,0.23808727]
[1768745969760,0.00015736,95323.0,95308.0,0.07980228]
[1768745970056,0.00015736,95323.0,95309.0,0.23827253]
[1768745970360,0.00015736,95323.0,95310.0,0.08131579]
[1768745977767,0.01280181,95329.0,95306.0,0.09448]
[1768745977768,0.00230781,95329.0,95312.0,0.07637115]
[1768745978764,0.010494,95328.0,95312.0,0.07637115]
[1768745979159,0.00230781,95329.0,95312.0,0.07637115]
[1768745979555,0.01280181,95329.0,95312.0,0.07637115]
[1768745980059,0.00230781,95329.0,95312.0,0.07637115]
[1768745980260,0.010495,95326.0,95312.0,0.07637115]
[1768745980857,0.010495,95326.0,95306.0,0.17080241]
[1768745981171,0.010495,95326.0,95307.0,0.26215681]
[1768745981366,0.010495,95324.0,95307.0,0.26215681]
[1768745982862,0.010495,95322.0,95307.0,0.26215681]
[1768745983267,0.010495,95322.0,95308.0,0.09444]
[1768745983450,0.010495,95322.0,95307.0,0.26215681]
[1768745983651,0.010495,95322.0,95309.0,0.15789322]
[1768745983857,0.010495,95322.0,95308.0,0.2627281]
[1768745984155,0.010495,95322.0,95307.0,0.09444]
[1768745984350,0.09432965,95325.0,95307.0,0.09444]
[1768745984658,0.010495,95319.0,95309.0,0.2627281]
[1768745984861,0.010495,95319.0,95309.0,0.15781227]
[1768745985157,0.010495,95319.0,95310.0,0.10491528]
[1768745985356,0.010495,95319.0,95310.0,0.26311273]
[1768745985553,0.010495,95319.0,95310.0,0.15819745]
[1768745985860,0.010495,95319.0,95311.0,0.10491638]
[1768745986265,0.010495,95319.0,95309.0,0.15842151]
[1768745986663,0.010495,95319.0,95308.0,0.10491528]
[1768745986864,0.010495,95319.0,95310.0,0.15842151]
[1768745987165,0.010495,95319.0,95309.0,0.15747469]
[1768745987557,0.010495,95319.0,95308.0,0.26239052]
[1768745987760,0.010495,95319.0,95308.0,0.15747469]
[1768745988061,0.010495,95319.0,95309.0,0.10491583]
[1768745988567,0.010495,95319.0,95310.0,0.15711089]
[1768745988960,0.010495,95319.0,95309.0,0.26153203]
[1768745989154,0.010495,95319.0,95306.0,0.09444]
[1768745989356,0.010495,95319.0,95310.0,0.10491638]
[1768745989556,0.11925004,95323.0,95310.0,3e-08]
[1768745989861,0.09432965,95309.0,95294.0,0.05610808]
[1768745990165,0.09432965,95308.0,95301.0,0.15733455]
[1768745990364,0.010496,95312.0,95301.0,0.15733455]
[1768745990563,0.010496,95312.0,95285.0,0.15733455]
[1768745990861,0.010496,95312.0,95298.0,0.15796841]
[1768745991271,0.010496,95312.0,95295.0,0.00015736]
[1768745991564,0.010496,95312.0,95298.0,0.15796841]
[1768745991766,0.010496,95312.0,95296.0,0.15796841]
[1768745991956,0.010496,95312.0,95295.0,0.00015736]
[1768745992158,0.010496,95312.0,95296.0,0.15678976]
[1768745992360,0.010496,95312.0,95297.0,0.07736106]
[1768745992562,0.09459736,95324.0,95297.0,0.07736106]
[1768745992860,0.010496,95313.0,95298.0,0.15678976]
[1768745993766,0.09638905,95318.0,95298.0,0.15678976]
[1768745993962,0.09638905,95318.0,95298.0,0.23559874]
[1768745994358,0.09638905,95318.0,95298.0,0.07880898]
[1768745994558,0.09638905,95318.0,95299.0,0.15822893]
[1768745994762,0.010496,95314.0,95299.0,0.15822893]
[1768745995266,0.09638905,95318.0,95299.0,0.15822893]
[1768745996174,0.010496,95314.0,95299.0,0.15822893]
[1768745997068,0.19098641,95324.0,95300.0,0.07849966]
[1768745997273,0.010496,95311.0,95300.0,0.07849966]
[1768745997464,0.010497,95309.0,95301.0,0.15754961]
[1768745997970,0.010496,95313.0,95300.0,0.15754961]
[1768745998164,0.010496,95313.0,95296.0,0.05610808]
[1768745998363,0.010496,95313.0,95301.0,0.1582442]
[1768745998666,0.010496,95313.0,95298.0,0.1582442]
[1768745998868,0.010496,95313.0,95296.0,0.05610808]
[1768745999168,0.010496,95313.0,95298.0,0.15764254]
[1768745999568,0.010496,95313.0,95297.0,0.07906706]
[1768745999770,0.010496,95313.0,95299.0,0.15764254]
[1768745999970,0.010496,95317.0,95299.0,0.15764254]
[1768746000173,0.010495,95321.0,95299.0,0.08018587]
[1768746000375,0.010495,95321.0,95301.0,0.08018587]
[1768746000774,0.00015736,95324.0,95303.0,0.08018587]
[1768746000973,0.010495,95323.0,95303.0,0.08018587]
[1768746001158,0.00015736,95324.0,95305.0,0.08018587]
[1768746001573,0.00015736,95324.0,95306.0,0.15704065]
[1768746002073,0.00015736,95324.0,95307.0,0.081312]
[1768746002367,0.09444,95332.0,95308.0,0.23916127]
[1768746002572,0.104934,95335.0,95310.0,0.08115464]
[1768746003074,0.09444,95335.0,95312.0,0.08115464]
[1768746003476,0.09444,95335.0,95314.0,0.08115464]
[1768746003477,0.010494,95331.0,95314.0,0.08115464]
[1768746003771,0.010494,95332.0,95315.0,0.15771289]
[1768746004172,0.010495,95324.0,95316.0,0.10490922]
[1768746004367,0.10688405,95324.0,95316.0,8.6e-07]
[1768746004675,0.09638905,95320.0,95315.0,5e-07]
[1768746004870,0.09638905,95320.0,95307.0,0.05610808]
[1768746005074,0.09638905,95320.0,95315.0,0.15758627]
[1768746005573,0.10688405,95325.0,95310.0,0.00015736]
[1768746005765,0.10688405,95325.0,95316.0,0.15758627]
[1768746005961,0.10688405,95325.0,95316.0,0.15543088]
[1768746006165,0.10688405,95325.0,95312.0,0.15684805]
[1768746006572,0.10688405,95325.0,95317.0,0.15684805]
[1768746006773,0.10688405,95325.0,95310.0,0.00015736]
[1768746007076,0.10688405,95325.0,95312.0,0.1576099]
[1768746007480,0.10688405,95325.0,95310.0,0.00015736]
[1768746007672,0.10688405,95325.0,95313.0,0.1576099]
[1768746008179,0.10688405,95325.0,95310.0,0.00015736]
[1768746008478,0.10688405,95325.0,95312.0,0.15648919]
[1768746008972,0.10688405,95325.0,95311.0,0.15648919]
[1768746008973,0.10688405,95325.0,95310.0,0.00015736]
[1768746009161,0.10688405,95325.0,95313.0,0.15711476]
[1768746009367,0.09638905,95331.0,95312.0,0.15711476]
[1768746009678,0.09638905,95331.0,95311.0,0.15356675]
[1768746009679,0.09638905,95330.0,95310.0,0.00015736]
[1768746009872,0.010495,95325.0,95312.0,0.15711476]
[1768746010270,0.010495,95325.0,95310.0,0.00015736]
[1768746010774,0.010495,95325.0,95311.0,0.15729095]
[1768746011686,0.010495,95322.0,95311.0,0.15729095]
[1768746013083,0.10688405,95326.0,95311.0,0.15729095]
[1768746014886,0.09638905,95326.0,95311.0,0.15729095]
[1768746015181,0.010495,95325.0,95311.0,0.15729095]
[1768746015489,0.010495,95322.0,95311.0,0.15729095]
[1768746015875,0.10688405,95322.0,95311.0,0.15729095]
[1768746019582,0.010496,95316.0,95311.0,9.5e-07]
[1768746020984,0.09638905,95322.0,95310.0,3.1e-07]
[1768746021185,0.010496,95318.0,95312.0,0.15642357]
[1768746021584,0.010496,95318.0,95310.0,3.1e-07]
[1768746021987,0.010496,95318.0,95311.0,0.15642357]
[1768746022184,0.09638905,95322.0,95311.0,0.15642357]
[1768746023491,0.010495,95320.0,95311.0,0.15642357]
[1768746024593,0.10688405,95322.0,95311.0,0.15642357]
[1768746025191,0.010495,95320.0,95311.0,0.15642357]
[1768746025390,0.09638905,95322.0,95311.0,0.15642357]
[1768746025596,0.010495,95321.0,95311.0,0.15642357]
[1768746025895,0.09638905,95322.0,95311.0,0.15642357]
[1768746026586,0.00015736,95323.0,95311.0,0.15642357]
[1768746029089,0.010495,95322.0,95311.0,0.15642357]
[1768746030697,0.09374764,95319.0,95311.0,5.7e-07]
[1768746030885,0.09374764,95317.0,95311.0,5.7e-07]
[1768746031696,0.010495,95318.0,95311.0,5.7e-07]
[1768746032001,0.010495,95321.0,95311.0,5.7e-07]
[1768746034893,0.010496,95316.0,95311.0,5.7e-07]
[1768746035202,0.010496,95314.0,95307.0,0.05610808]
[1768746035403,0.09374764,95313.0,95312.0,9.9e-07]
[1768746035591,0.09374764,95313.0,95307.0,0.05605973]
[1768746035989,0.010496,95314.0,95307.0,0.05605973]
[1768746036206,0.010496,95314.0,95308.0,7.5e-07]
[1768746036701,0.010496,95312.0,95307.0,4.8e-07]
[1768746036894,0.09813912,95315.0,95297.0,0.09444]
[1768746037294,0.010496,95313.0,95297.0,0.09444]
[1768746037898,0.010496,95311.0,95298.0,0.10492628]
[1768746039105,0.010496,95311.0,95299.0,0.00149765]
[1768746042609,0.010497,95309.0,95299.0,0.00149765]
[1768746042809,0.010497,95307.0,95294.0,0.07471087]
[1768746043006,0.010497,95304.0,95293.0,0.09444]
[1768746043206,0.010497,95304.0,95300.0,1e-08]
[1768746043408,0.010497,95304.0,95293.0,0.1513081]
[1768746043717,0.010497,95304.0,95299.0,0.15728001]
[1768746043908,0.010497,95308.0,95299.0,0.15728001]
[1768746044103,0.010497,95308.0,95293.0,0.1513081]
[1768746044509,0.010497,95308.0,95300.0,0.15825088]
[1768746044904,0.010497,95306.0,95293.0,0.1513081]
[1768746045312,0.010496,95310.0,95298.0,0.15807818]
[1768746045611,0.1050462,95360.0,95293.0,0.1513081]
[1768746045612,0.09813912,95322.0,95295.0,0.00128972]
[1768746045815,0.09813912,95315.0,95299.0,0.15807818]
[1768746046022,0.010496,95310.0,95297.0,0.15807818]
[1768746046317,0.010496,95310.0,95294.0,0.15476276]
[1768746046516,0.010496,95310.0,95298.0,0.15633917]
[1768746046820,0.010496,95310.0,95296.0,0.10233342]
[1768746047004,0.010496,95310.0,95295.0,0.15476276]
[1768746047211,0.010496,95310.0,95294.0,0.15743044]
[1768746047413,0.010496,95310.0,95293.0,0.1513081]
[1768746047917,0.09813912,95313.0,95294.0,0.15743044]
[1768746048216,0.010497,95307.0,95294.0,0.15743044]
[1768746050115,0.010497,95304.0,95294.0,0.15743044]
[1768746050513,0.010497,95308.0,95294.0,0.15743044]
[1768746055522,0.010496,95312.0,95294.0,0.15743044]
[1768746056825,0.010496,95312.0,95295.0,0.05626697]
[1768746057230,0.010496,95312.0,95296.0,0.15831353]
[1768746058028,0.010496,95312.0,95296.0,0.2145805]
[1768746058323,0.010496,95312.0,95297.0,0.05626697]
[1768746058628,0.010496,95312.0,95298.0,0.15715095]
[1768746059426,0.09444,95316.0,95298.0,0.15715095]
[1768746060130,0.104936,95316.0,95299.0,0.05626697]
[1768746060329,0.104936,95316.0,95301.0,0.05626697]
[1768746060727,0.104936,95316.0,95302.0,0.15655918]
[1768746061534,0.09139845,95315.0,95302.0,0.15655918]
[1768746061831,0.104936,95316.0,95301.0,0.10680543]
[1768746062033,0.104936,95316.0,95300.0,0.05626697]
[1768746062234,0.104936,95316.0,95301.0,0.15739608]
[1768746062534,0.010496,95314.0,95301.0,0.21366305]
[1768746063034,0.010496,95312.0,95301.0,0.05626697]
[1768746063215,0.010496,95312.0,95302.0,0.15779929]
[1768746063621,0.010496,95312.0,95301.0,0.05626697]
[1768746064033,0.010496,95312.0,95302.0,0.15779929]
[1768746064537,0.104936,95316.0,95302.0,0.15779929]
[1768746064738,0.010496,95314.0,95302.0,0.15779929]
[1768746066151,0.09444,95316.0,95302.0,0.15779929]
[1768746066336,0.09139845,95315.0,95302.0,0.15779929]
[1768746067540,0.010496,95310.0,95302.0,0.15779929]
[1768746068047,0.010497,95308.0,95302.0,0.15779929]
[1768746068450,0.010496,95314.0,95302.0,0.15779929]
[1768746068949,0.010496,95312.0,95302.0,0.15779929]
[1768746069552,0.09139845,95315.0,95302.0,0.15779929]
[1768746070547,0.09444,95316.0,95293.0,0.07471087]
[1768746070548,0.09139845,95313.0,95293.0,0.07471087]
[1768746070744,0.09139845,95311.0,95286.0,0.16915087]
[1768746070945,0.010497,95302.0,95286.0,0.09444]
[1768746071148,0.010497,95302.0,95290.0,0.00070193]
[1768746071546,0.09139845,95309.0,95290.0,0.0005996]
[1768746072642,0.010497,95301.0,95290.0,0.0005996]
[1768746074454,0.09139845,95309.0,95290.0,0.0005996]
[1768746074655,0.09139845,95307.0,95290.0,0.0005996]
[1768746074856,0.010497,95300.0,95290.0,0.0005996]
[1768746075154,0.09139845,95307.0,95290.0,6e-07]
[1768746075555,0.09139845,95305.0,95290.0,6e-07]
[1768746075750,0.09139845,95292.0,95289.0,9.6e-07]
[1768746076051,0.09139845,95292.0,95289.0,1.8e-07]
[1768746076845,0.010498,95291.0,95289.0,1.8e-07]
[1768746077044,0.10189745,95289.0,95274.0,0.09444]
[1768746077445,0.10189745,95289.0,95277.0,0.10494225]
[1768746077845,0.10189745,95289.0,95274.0,0.15297658]
[1768746078047,0.10189745,95289.0,95278.0,0.1506309]
[1768746078346,0.10189745,95289.0,95263.0,0.010501]
[1768746078347,0.10189745,95286.0,95275.0,0.22450196]
[1768746078651,0.10189745,95286.0,95270.0,0.09448]
[1768746078652,0.10189745,95284.0,95263.0,0.07471087]
[1768746078854,0.10189845,95281.0,95264.0,0.09448]
[1768746079050,0.09139845,95279.0,95265.0,0.10495326]
[1768746079354,0.09139845,95276.0,95265.0,0.00207885]
[1768746079546,0.20724953,95274.0,95265.0,0.01263086]
[1768746079746,7.418e-05,95273.0,95265.0,0.01055201]
[1768746079957,7.418e-05,95273.0,95262.0,0.11972728]
[1768746080163,7.418e-05,95273.0,95255.0,0.0642447]
[1768746080350,7.418e-05,95273.0,95266.0,0.15587317]
[1768746080658,7.418e-05,95273.0,95256.0,0.11972728]
[1768746080860,7.418e-05,95273.0,95255.0,0.00534405]
[1768746081058,7.418e-05,95273.0,95256.0,0.22469266]
[1768746081363,7.418e-05,95273.0,95256.0,0.22999049]
[1768746081749,7.418e-05,95273.0,95256.0,0.2407472]
[1768746082959,0.10360119,95272.0,95256.0,0.23544937]
[1768746083158,0.218131,95272.0,95256.0,0.23544937]
[1768746083352,0.09310019,95270.0,95256.0,0.13048399]
[1768746083552,0.20763,95270.0,95256.0,0.13048399]
[1768746083755,0.09310019,95269.0,95256.0,0.13048399]
[1768746084263,0.10360119,95269.0,95256.0,0.13048399]
[1768746084448,0.09310019,95268.0,95256.0,0.13048399]
[1768746084654,0.20763,95263.0,95249.0,0.00230975]
[1768746084862,0.09310019,95262.0,95249.0,0.00230975]
[1768746085158,0.09310019,95262.0,95250.0,0.10915702]
[1768746087363,0.09310019,95262.0,95250.0,0.00418337]
[1768746089957,0.09310019,95261.0,95250.0,0.00418337]
[1768746090156,0.20763,95261.0,95250.0,0.00418337]
[1768746090659,0.09310019,95258.0,95244.0,0.00230986]
[1768746091272,0.09310019,95258.0,95245.0,0.00109431]
[1768746091457,0.09310019,95258.0,95245.0,0.01173737]
[1768746092068,0.20763,95257.0,95245.0,0.01173737]
[1768746092363,0.010502,95254.0,95245.0,0.01173737]
[1768746092564,0.09310019,95249.0,95245.0,3.7e-07]
[1768746092763,0.09310019,95249.0,95235.0,0.09448]
[1768746092965,0.09310019,95249.0,95230.0,0.05843661]
[1768746093162,0.20763,95249.0,95237.0,0.10498742]
[1768746095168,0.20763,95249.0,95238.0,0.15440955]
[1768746095467,0.010503,95248.0,95238.0,0.15440955]
[1768746095671,0.20763,95249.0,95238.0,0.15440955]
[1768746095867,0.20763,95249.0,95237.0,0.00103986]
[1768746096064,0.20763,95249.0,95236.0,0.0109115]
[1768746096461,0.20763,95249.0,95237.0,0.15548212]
[1768746097970,0.09310019,95249.0,95237.0,0.15548212]
[1768746098174,0.09155884,95248.0,95237.0,0.15548212]
[1768746098766,0.10206184,95246.0,95237.0,0.15548212]
[1768746099269,0.09155884,95246.0,95237.0,0.15548212]
[1768746103865,0.09155884,95251.0,95237.0,0.15548212]
[1768746104777,0.10206184,95251.0,95237.0,0.15548212]
[1768746105276,0.2202322,95251.0,95237.0,0.15548212]
[1768746105768,0.09155884,95250.0,95237.0,0.15548212]
[1768746105974,0.09155884,95250.0,95229.0,0.00231023]
[1768746105975,0.09155884,95246.0,95229.0,0.00231023]
[1768746106174,0.010504,95244.0,95229.0,0.00231023]
[1768746106375,0.2097292,95246.0,95229.0,0.00231023]
[1768746106376,0.010504,95242.0,95229.0,0.00231023]
[1768746107173,0.01066045,95245.0,95229.0,0.00231023]
[1768746107372,0.010504,95243.0,95229.0,0.00231023]
[1768746108469,0.2202332,95243.0,95229.0,0.00231023]
[1768746108778,0.09155884,95241.0,95229.0,0.00231023]
[1768746109075,0.00011582,95240.0,95229.0,0.00231023]
[1768746110275,0.00011582,95240.0,95229.0,0.0143535]
[1768746112083,0.00011582,95240.0,95230.0,0.01315441]
[1768746112267,0.09768979,95240.0,95230.0,0.01315441]
[1768746118188,0.09757397,95236.0,95229.0,0.0143535]
[1768746118482,0.09757397,95236.0,95224.0,0.00231034]
[1768746118883,0.09757397,95236.0,95225.0,0.15820599]
[1768746120203,0.00011582,95240.0,95226.0,0.11569463]
[1768746120507,0.00011582,95240.0,95227.0,0.15836574]
[1768746120704,0.00011582,95240.0,95228.0,0.11569463]
[1768746121508,0.00011582,95240.0,95226.0,0.01200325]
[1768746121806,0.00011582,95240.0,95227.0,0.15732632]
[1768746122307,0.00011582,95240.0,95225.0,0.15732632]
[1768746122607,0.00011582,95240.0,95225.0,0.11569463]
[1768746123003,0.00011582,95240.0,95225.0,0.27352096]
[1768746124405,0.00011582,95240.0,95225.0,0.28577731]
[1768746124811,0.09757397,95234.0,95225.0,0.15782633]
[1768746125005,0.09757397,95229.0,95225.0,3.3e-07]
[1768746125201,0.09452,95234.0,95225.0,3.3e-07]
[1768746125407,0.010505,95233.0,95225.0,3.3e-07]
[1768746126015,0.10807897,95233.0,95225.0,3.3e-07]
[1768746127514,0.09757397,95229.0,95224.0,6.7e-07]
[1768746127715,0.09757397,95229.0,95226.0,8e-08]
[1768746127918,0.09757397,95229.0,95225.0,0.15658308]
[1768746128209,0.09757397,95229.0,95225.0,8e-08]
[1768746133018,0.010505,95235.0,95225.0,8e-08]
[1768746133019,0.09452,95235.0,95225.0,8e-08]
[1768746133216,0.19209397,95235.0,95225.0,8e-08]
[1768746133911,0.09757397,95234.0,95225.0,8e-08]
[1768746135011,0.09757397,95227.0,95211.0,0.07471087]
[1768746135210,0.21104414,95224.0,95204.0,0.00231083]
[1768746135416,0.09757397,95221.0,95210.0,0.10500947]
[1768746135618,0.10807997,95221.0,95212.0,0.15680022]
[1768746135808,0.010507,95218.0,95210.0,0.10545165]
[1768746136007,0.010507,95212.0,95209.0,9.4e-07]
[1768746136318,0.010507,95212.0,95210.0,0.15674007]
[1768746136520,0.010507,95212.0,95210.0,7e-08]
[1768746136823,0.010507,95216.0,95210.0,7e-08]
[1768746138523,0.10808097,95216.0,95210.0,7e-08]
[1768746139022,0.10808097,95216.0,95189.0,0.24961583]
[1768746139023,0.11347017,95213.0,95189.0,0.24961583]
[1768746139320,0.09757397,95210.0,95203.0,0.10502767]
[1768746139615,0.09757397,95210.0,95201.0,0.00432474]
[1768746139816,0.010507,95215.0,95201.0,0.00432474]
[1768746140017,0.10808097,95213.0,95201.0,0.10502767]
[1768746140327,0.09757397,95213.0,95201.0,0.00432474]
[1768746140508,0.10808097,95213.0,95201.0,0.00432474]
[1768746141319,0.21104414,95210.0,95201.0,7.4e-07]
[1768746141521,0.09757397,95207.0,95194.0,0.09452]
[1768746141822,0.10808197,95207.0,95191.0,0.09452]
[1768746142213,0.09757397,95207.0,95191.0,0.20346874]
[1768746142408,0.09703053,95212.0,95193.0,0.10894874]
[1768746143022,0.09703053,95212.0,95194.0,0.00117924]
[1768746144120,0.09703053,95212.0,95194.0,0.11012798]
[1768746144427,0.09703053,95218.0,95197.0,0.10894874]
[1768746144607,0.09703053,95217.0,95197.0,0.10894874]
[1768746144812,0.09703053,95216.0,95197.0,0.10894874]
[1768746145316,0.09703053,95215.0,95197.0,0.10894874]
[1768746149625,0.09703053,95215.0,95198.0,7.782e-05]
[1768746150026,0.09703053,95214.0,95198.0,7.782e-05]
[1768746150328,0.09703053,95214.0,95197.0,0.00185802]
[1768746151228,0.20878691,95213.0,95197.0,0.00185802]
[1768746151528,0.09703053,95212.0,95193.0,0.01251829]
[1768746151719,0.09703053,95212.0,95194.0,0.00108004]
[1768746151920,0.09703053,95212.0,95194.0,0.10611598]
[1768746152218,0.09703053,95211.0,95193.0,0.01195867]
[1768746152418,0.09703053,95211.0,95195.0,0.10611929]
[1768746152722,0.09703053,95211.0,95191.0,0.2966629]
[1768746152723,0.09703053,95209.0,95191.0,0.20346874]
[1768746153132,0.10753853,95208.0,95192.0,0.1050387]
[1768746153325,0.10753853,95208.0,95192.0,0.10791853]
[1768746156021,0.09456,95219.0,95196.0,0.1169836]
[1768746156332,0.09158906,95218.0,95196.0,0.1169836]
[1768746156719,0.09158906,95217.0,95196.0,0.1169836]
[1768746156919,0.2085457,95217.0,95196.0,0.1169836]
[1768746157119,0.09158906,95216.0,95196.0,0.1169836]
[1768746157321,0.09456,95219.0,95198.0,0.09147768]
[1768746157520,0.18614906,95219.0,95199.0,0.1169836]
[1768746157917,0.09158906,95218.0,95199.0,0.1169836]
[1768746158732,0.09158906,95217.0,95199.0,0.1169836]
[1768746161037,0.09158906,95217.0,95204.0,0.00231083]
[1768746163038,0.09158906,95216.0,95204.0,0.00231083]
[1768746163944,0.10209606,95215.0,95204.0,0.00231083]
[1768746164447,0.010507,95212.0,95205.0,0.00097428]
[1768746166533,0.12746364,95214.0,95205.0,2.8e-07]
[1768746166736,0.2190527,95214.0,95205.0,2.8e-07]
[1768746167943,0.2085457,95210.0,95204.0,1.1e-07]
[1768746168143,0.2085457,95209.0,95204.0,1.1e-07]
[1768746168440,0.09158906,95208.0,95204.0,1.1e-07]
[1768746168841,0.010508,95207.0,95204.0,1.1e-07]
[1768746169025,0.010508,95205.0,95204.0,1.1e-07]
[1768746170442,0.10209706,95205.0,95204.0,1.1e-07]
[1768746170644,0.010508,95202.0,95196.0,1.1e-07]
[1768746170843,0.09158906,95205.0,95196.0,1.1e-07]
[1768746171043,0.09158906,95205.0,95197.0,5e-08]
[1768746171447,0.010508,95202.0,95197.0,5e-08]
[1768746172147,0.09158906,95205.0,95197.0,5e-08]
[1768746172946,0.10862259,95202.0,95193.0,0.09456]
[1768746173333,0.10862259,95202.0,95193.0,0.19960091]
[1768746173534,0.10862259,95202.0,95194.0,0.00051877]
[1768746176253,0.09811459,95202.0,95194.0,0.00051877]
[1768746180042,0.20678901,95201.0,95194.0,0.00051877]
[1768746180241,0.10862259,95200.0,95194.0,0.00051877]
[1768746180750,0.07540759,95201.0,95194.0,0.00051877]
[1768746181547,0.010508,95200.0,95194.0,0.00051877]
[1768746182137,0.010508,95200.0,95194.0,7.7e-07]
[1768746182351,0.010509,95196.0,95192.0,2.4e-07]
[1768746182648,0.010509,95200.0,95195.0,1.6e-07]
[1768746182844,0.09811459,95199.0,95194.0,0.09719755]
[1768746183145,0.09811459,95199.0,95189.0,0.0968712]
[1768746183346,0.09811459,95199.0,95190.0,0.09719771]
[1768746183546,0.09811459,95199.0,95190.0,0.11046165]
[1768746184453,0.10867442,95201.0,95190.0,0.11046165]
[1768746185747,0.00015753,95202.0,95190.0,0.22427475]
[1768746185954,0.11918142,95213.0,95193.0,0.1138131]
[1768746186140,0.10867442,95210.0,95191.0,0.10504698]
[1768746186341,0.10867442,95210.0,95194.0,0.00116862]
[1768746186543,0.10867442,95210.0,95193.0,0.00031069]
[1768746186949,0.10867442,95210.0,95191.0,0.00116862]
[1768746186950,0.00013245,95209.0,95191.0,0.00116862]
[1768746187249,0.00013245,95209.0,95190.0,0.01326394]
[1768746187250,0.00013245,95209.0,95193.0,0.20254876]
[1768746187456,0.00013245,95209.0,95193.0,0.10504036]
[1768746187655,0.00013245,95209.0,95194.0,0.10078522]
[1768746188059,0.00013245,95209.0,95192.0,0.10620898]
[1768746188257,0.00013245,95209.0,95191.0,0.10078522]
[1768746188755,0.00013245,95209.0,95191.0,0.10504036]
[1768746188953,0.00013245,95209.0,95192.0,0.1138131]
[1768746189154,0.011,98100.0,95205.0,0.1138131]
[1768746189155,0.010505,95223.0,95205.0,0.1138131]
[1768746189350,0.010505,95224.0,95206.0,0.2083731]
[1768746189556,0.010505,95224.0,95206.0,0.47062419]
[1768746189743,0.010505,95224.0,95206.0,0.31341511]
[1768746189943,0.20678901,95225.0,95206.0,0.2083731]
[1768746190157,8.088e-05,95224.0,95207.0,0.26225109]
[1768746190359,0.1087553,95224.0,95207.0,0.26225109]
[1768746192060,0.1192603,95224.0,95207.0,0.26225109]
[1768746192762,0.10867442,95223.0,95207.0,0.26225109]
[1768746196063,0.10880687,95223.0,95207.0,0.26225109]
[1768746196263,0.00013245,95223.0,95207.0,0.26225109]
[1768746198158,8.088e-05,95224.0,95208.0,0.1138131]
[1768746198363,0.010505,95223.0,95208.0,0.1138131]
[1768746198564,0.010505,95223.0,95207.0,0.3556358]
[1768746198565,0.010505,95223.0,95209.0,0.15766511]
[1768746198860,0.010505,95223.0,95208.0,0.26310643]
[1768746199157,0.010505,95223.0,95208.0,0.10502546]
[1768746199360,8.088e-05,95224.0,95207.0,0.15808097]
[1768746199560,8.088e-05,95224.0,95209.0,0.15808097]
[1768746199753,8.088e-05,95224.0,95208.0,0.26270262]
[1768746200265,0.00231023,95229.0,95212.0,0.1138131]
[1768746200650,0.00013245,95227.0,95213.0,0.15730831]
[1768746200851,0.00231023,95229.0,95213.0,0.15730831]